{"text_format":"3","workbook":"xlsx","n_sheets":1,"sheets":["Krvni tlak i glukoza"],"not_rendered":{"defined_names":9},"read":"whole","date_system":"1900"}

{"sheet":"Krvni tlak i glukoza","index":0,"n_rows":13,"n_cols":11,"rows_kept":13,"merged":[[0,1,4,3],[0,4,0,9],[1,4,1,6],[1,7,1,9],[3,7,4,7],[3,8,4,8],[3,9,4,9]]}
[null,"Tlak\ni glukoze",null,null,"U nastavku prilagodite vrijednosti na ljestvici u ćelijama od E2 do J5."]
[{"$nulls":4},"TLAK",null,null,"RASPON GLUKOZE"]
[{"$nulls":4},120,"SISTOLIČKI",140,70,100,150]
[{"$nulls":4},80,"DIJASTOLIČKI",90,"NISKA","NORMALNA","VISOKA"]
[{"$nulls":4},"CILJNI TLAK",null,"NAZVATI LIJEČNIKA"]
[null,"Datum","Vrijeme","Događaj","Sistolički","Dijastolički","Broj otkucaja srca","Glukoza","Razina","Stanje","Napomene"]
[null,{"$f":"TODAY()","v":"2018-06-28"},"06:00:00","Buđenje",129,79,72,55,{"$f":"KrvniTlakIGlukoza[[#This Row],[Glukoza]]","v":55},{"$f":"IFERROR(IF(KrvniTlakIGlukoza[[#This Row],[Razina]]=0,\"\",IF(KrvniTlakIGlukoza[[#This Row],[Razina]]<=GNiska,\"NISKA\",IF(AND(KrvniTlakIGlukoza[[#This Row],[Razina]]>GNiska,KrvniTlakIGlukoza[[#This Row],[Razina]]<GVisoka),\"NORMALNA\",\"VISOKA\"))), \"\")","v":"NISKA"}]
[null,{"$f":"TODAY()","v":"2018-06-28"},"07:00:00","Prije obroka",120,80,74,70,{"$f":"KrvniTlakIGlukoza[[#This Row],[Glukoza]]","v":70},{"$f":"IFERROR(IF(KrvniTlakIGlukoza[[#This Row],[Razina]]=0,\"\",IF(KrvniTlakIGlukoza[[#This Row],[Razina]]<=GNiska,\"NISKA\",IF(AND(KrvniTlakIGlukoza[[#This Row],[Razina]]>GNiska,KrvniTlakIGlukoza[[#This Row],[Razina]]<GVisoka),\"NORMALNA\",\"VISOKA\"))), \"\")","v":"NISKA"}]
[null,"2018-06-28","09:00:00","Nakon obroka",133,80,75,75,{"$f":"KrvniTlakIGlukoza[[#This Row],[Glukoza]]","v":75},{"$f":"IFERROR(IF(KrvniTlakIGlukoza[[#This Row],[Razina]]=0,\"\",IF(KrvniTlakIGlukoza[[#This Row],[Razina]]<=GNiska,\"NISKA\",IF(AND(KrvniTlakIGlukoza[[#This Row],[Razina]]>GNiska,KrvniTlakIGlukoza[[#This Row],[Razina]]<GVisoka),\"NORMALNA\",\"VISOKA\"))), \"\")","v":"NORMALNA"}]
[null,"2018-06-28","10:00:00","Samo krvni tlak",143,91,75,190,{"$f":"KrvniTlakIGlukoza[[#This Row],[Glukoza]]","v":190},{"$f":"IFERROR(IF(KrvniTlakIGlukoza[[#This Row],[Razina]]=0,\"\",IF(KrvniTlakIGlukoza[[#This Row],[Razina]]<=GNiska,\"NISKA\",IF(AND(KrvniTlakIGlukoza[[#This Row],[Razina]]>GNiska,KrvniTlakIGlukoza[[#This Row],[Razina]]<GVisoka),\"NORMALNA\",\"VISOKA\"))), \"\")","v":"VISOKA"}]
[null,"2018-06-28","12:00:00","Prije obroka",141,84,70,140,{"$f":"KrvniTlakIGlukoza[[#This Row],[Glukoza]]","v":140},{"$f":"IFERROR(IF(KrvniTlakIGlukoza[[#This Row],[Razina]]=0,\"\",IF(KrvniTlakIGlukoza[[#This Row],[Razina]]<=GNiska,\"NISKA\",IF(AND(KrvniTlakIGlukoza[[#This Row],[Razina]]>GNiska,KrvniTlakIGlukoza[[#This Row],[Razina]]<GVisoka),\"NORMALNA\",\"VISOKA\"))), \"\")","v":"NORMALNA"}]
[null,{"$f":"TODAY()","v":"2018-06-28"},"15:00:00","Nakon obroka",132,80,68,90,{"$f":"KrvniTlakIGlukoza[[#This Row],[Glukoza]]","v":90},{"$f":"IFERROR(IF(KrvniTlakIGlukoza[[#This Row],[Razina]]=0,\"\",IF(KrvniTlakIGlukoza[[#This Row],[Razina]]<=GNiska,\"NISKA\",IF(AND(KrvniTlakIGlukoza[[#This Row],[Razina]]>GNiska,KrvniTlakIGlukoza[[#This Row],[Razina]]<GVisoka),\"NORMALNA\",\"VISOKA\"))), \"\")","v":"NORMALNA"},"Uzeti lijekovi za regulaciju tlaka uz obrok"]
[null,"Prosječne vrijednosti",null,null,{"$f":"SUBTOTAL(101,KrvniTlakIGlukoza[Sistolički])","v":133},{"$f":"SUBTOTAL(101,KrvniTlakIGlukoza[Dijastolički])","v":{"v":82.33333333333333,"d":"82"}},{"$f":"SUBTOTAL(101,KrvniTlakIGlukoza[Broj otkucaja srca])","v":{"v":72.33333333333333,"d":"72"}},{"$f":"SUBTOTAL(101,KrvniTlakIGlukoza[Glukoza])","v":{"v":103.33333333333333,"d":"103"}}]